Workbook

Sheet февраль 2018
A2: 2018-02-01
A3: ФИО | B3: 1 | C3: 2 | D3: 3 | E3: 4 | F3: 5 | G3: 6 | H3: 7 | I3: 8 | J3: 9 | K3: 10 | L3: 11 | M3: 12 | N3: 13 | O3: 14 | P3: 1 | Q3: 2 | R3: 3 | S3: 4 | T3: 5 | U3: 6 | V3: 7 | W3: 8 | X3: 9 | Y3: 10 | Z3: 11 | AA3: 12 | AB3: 13 | AC3: 14 | AD3: 15 | AE3: 16 | AF3: 17 | AG3: 18 | AH3: 19 | AI3: 20 | AJ3: 21 | AK3: 22 | AL3: 23 | AM3: 24 | AN3: 25 | AO3: 26 | AP3: 27 | AQ3: 28 | AR3: 29 | AS3: 30 | AT3: 31 | AU3: кол-во заказов | AV3: Даты заказов | AW3: Общая сумма
A4: КЛИЕНТ1 | AU4: =COUNT(P4:AT4) -> 0 | AV4: =сцепитьдаты(P4:AT4,A$2) ->  | AW4: =SUM(P4:AT4) -> 0
A5: КЛИЕНТ2 | AE5: 3454 | AJ5: 6577 | AU5: =COUNT(P5:AT5) -> 2 | AV5: =сцепитьдаты(P5:AT5,A$2) -> 16.2; 21.2; | AW5: =SUM(P5:AT5) -> 10031
A6: КЛИЕНТ3 | AF6: 5675 | AU6: 1 | AV6: 17.2; | AW6: 5675
A7: КЛИЕНТ4 | V7: 2344 | AQ7: 2456 | AU7: 2 | AV7: 7.2; 28.2; | AW7: 4800
A8: ИТОГО | P8: =SUM(P4:P7) -> 0 | Q8: 0 | R8: 0 | S8: 0 | T8: 0 | U8: 0 | V8: 2344 | W8: 0 | X8: 0 | Y8: 0 | Z8: 0 | AA8: 0 | AB8: 0 | AC8: 0 | AD8: =SUM(AD4:AD7) -> 0 | AE8: 3454 | AF8: 5675 | AG8: 0 | AH8: 0 | AI8: 0 | AJ8: 6577 | AK8: 0 | AM8: =SUM(AM4:AM7) -> 0 | AN8: =SUM(AN4:AN7) -> 0 | AO8: =SUM(AO4:AO7) -> 0 | AP8: =SUM(AP4:AP7) -> 0 | AW8: =SUM(AW4:AW7) -> 20506

Sheet март 2018
A2: 2018-03-01
A3: ФИО | B3: 1 | C3: 2 | D3: 3 | E3: 4 | F3: 5 | G3: 6 | H3: 7 | I3: 8 | J3: 9 | K3: 10 | L3: 11 | M3: 12 | N3: 13 | O3: 14 | P3: 1 | Q3: 2 | R3: 3 | S3: 4 | T3: 5 | U3: 6 | V3: 7 | W3: 8 | X3: 9 | Y3: 10 | Z3: 11 | AA3: 12 | AB3: 13 | AC3: 14 | AD3: 15 | AE3: 16 | AF3: 17 | AG3: 18 | AH3: 19 | AI3: 20 | AJ3: 21 | AK3: 22 | AL3: 23 | AM3: 24 | AN3: 25 | AO3: 26 | AP3: 27 | AQ3: 28 | AR3: 29 | AS3: 30 | AT3: 31 | AU3: кол-во заказов | AV3: Даты заказов | AW3: Общая сумма
A4: КЛИЕНТ1 | AI4: 5565 | AU4: =COUNT(P4:AT4) -> 1 | AV4: =сцепитьдаты(P4:AT4,A$2) -> 20.3; | AW4: =SUM(P4:AT4) -> 5565
A5: КЛИЕНТ2 | AE5: 3454 | AU5: =COUNT(P5:AT5) -> 1 | AV5: =сцепитьдаты(P5:AT5,A$2) -> 16.3; | AW5: =SUM(P5:AT5) -> 3454
A6: КЛИЕНТ3 | U6: 4678 | Z6: 2356 | AF6: 5675 | AU6: =COUNT(P6:AT6) -> 3 | AV6: =сцепитьдаты(P6:AT6,A$2) -> 6.3; 11.3; 17.3; | AW6: =SUM(P6:AT6) -> 12709
A7: КЛИЕНТ4 | AU7: =COUNT(P7:AT7) -> 0 | AV7: =сцепитьдаты(P7:AT7,A$2) ->  | AW7: =SUM(P7:AT7) -> 0
A8: КЛИЕНТ5 | AK8: 2345 | AU8: =COUNT(P8:AT8) -> 1 | AV8: =сцепитьдаты(P8:AT8,A$2) -> 22.3; | AW8: =SUM(P8:AT8) -> 2345
A9: КЛИЕНТ6 | S9: 1213 | AH9: 4565 | AU9: =COUNT(P9:AT9) -> 2 | AV9: =сцепитьдаты(P9:AT9,A$2) -> 4.3; 19.3; | AW9: =SUM(P9:AT9) -> 5778
A10: ИТОГО | P10: =SUM(P4:P9) -> 0 | Q10: 0 | R10: 0 | S10: 1213 | T10: 0 | U10: 4678 | V10: 0 | W10: 0 | X10: 0 | Y10: 0 | Z10: 2356 | AA10: 0 | AB10: 0 | AC10: 0 | AD10: 0 | AE10: =SUM(AE4:AE9) -> 3454 | AF10: 5675 | AG10: 0 | AH10: 4565 | AI10: 5565 | AJ10: 0 | AK10: 2345 | AM10: =SUM(AM4:AM9) -> 0 | AN10: =SUM(AN4:AN9) -> 0 | AO10: =SUM(AO4:AO9) -> 0 | AP10: =SUM(AP4:AP9) -> 0 | AW10: =SUM(AW4:AW9) -> 29851

Sheet апрель 2018
A2: 2018-04-01
A3: ФИО | B3: 1 | C3: 2 | D3: 3 | E3: 4 | F3: 5 | G3: 6 | H3: 7 | I3: 8 | J3: 9 | K3: 10 | L3: 11 | M3: 12 | N3: 13 | O3: 14 | P3: 1 | Q3: 2 | R3: 3 | S3: 4 | T3: 5 | U3: 6 | V3: 7 | W3: 8 | X3: 9 | Y3: 10 | Z3: 11 | AA3: 12 | AB3: 13 | AC3: 14 | AD3: 15 | AE3: 16 | AF3: 17 | AG3: 18 | AH3: 19 | AI3: 20 | AJ3: 21 | AK3: 22 | AL3: 23 | AM3: 24 | AN3: 25 | AO3: 26 | AP3: 27 | AQ3: 28 | AR3: 29 | AS3: 30 | AT3: 31 | AU3: кол-во заказов | AV3: Даты заказов | AW3: Общая сумма
A4: КЛИЕНТ1 | T4: 5675 | AU4: =COUNT(P4:AT4) -> 1 | AV4: =сцепитьдаты(P4:AT4,A$2) -> 5.4; | AW4: =SUM(P4:AT4) -> 5675
A5: КЛИЕНТ2 | AE5: 3454 | AU5: =COUNT(P5:AT5) -> 1 | AV5: =сцепитьдаты(P5:AT5,A$2) -> 16.4; | AW5: =SUM(P5:AT5) -> 3454
A6: КЛИЕНТ3 | Y6: 2345 | AF6: 5675 | AU6: =COUNT(P6:AT6) -> 2 | AV6: =сцепитьдаты(P6:AT6,A$2) -> 10.4; 17.4; | AW6: =SUM(P6:AT6) -> 8020
A7: КЛИЕНТ4 | V7: 4565 | AU7: =COUNT(P7:AT7) -> 1 | AV7: =сцепитьдаты(P7:AT7,A$2) -> 7.4; | AW7: =SUM(P7:AT7) -> 4565
A8: КЛИЕНТ5 | AC8: 2345 | AK8: 2345 | AU8: =COUNT(P8:AT8) -> 2 | AV8: =сцепитьдаты(P8:AT8,A$2) -> 14.4; 22.4; | AW8: =SUM(P8:AT8) -> 4690
A9: КЛИЕНТ6 | X9: 2234 | Z9: 4565 | AH9: 4565 | AU9: =COUNT(P9:AT9) -> 3 | AV9: =сцепитьдаты(P9:AT9,A$2) -> 9.4; 11.4; 19.4; | AW9: =SUM(P9:AT9) -> 11364
A10: КЛИЕНТ7 | AU10: =COUNT(P10:AT10) -> 0 | AV10: =сцепитьдаты(P10:AT10,A$2) ->  | AW10: =SUM(P10:AT10) -> 0
A11: КЛИЕНТ8 | AB11: 2234 | AE11: 1121 | AJ11: 2234 | AU11: =COUNT(P11:AT11) -> 3 | AV11: =сцепитьдаты(P11:AT11,A$2) -> 13.4; 16.4; 21.4; | AW11: =SUM(P11:AT11) -> 5589
A12: ИТОГО | AD12: =SUM(AD4:AD11) -> 0 | AE12: 4575 | AF12: 5675 | AG12: 0 | AH12: 4565 | AI12: 0 | AJ12: 2234 | AK12: 2345 | AM12: =SUM(AM4:AM11) -> 0 | AN12: =SUM(AN4:AN11) -> 0 | AO12: =SUM(AO4:AO11) -> 0 | AP12: =SUM(AP4:AP11) -> 0 | AW12: =SUM(AW4:AW11) -> 43357

Sheet май 2018
A2: 2018-05-01
A3: ФИО | B3: 1 | C3: 2 | D3: 3 | E3: 4 | F3: 5 | G3: 6 | H3: 7 | I3: 8 | J3: 9 | K3: 10 | L3: 11 | M3: 12 | N3: 13 | O3: 14 | P3: 1 | Q3: 2 | R3: 3 | S3: 4 | T3: 5 | U3: 6 | V3: 7 | W3: 8 | X3: 9 | Y3: 10 | Z3: 11 | AA3: 12 | AB3: 13 | AC3: 14 | AD3: 15 | AE3: 16 | AF3: 17 | AG3: 18 | AH3: 19 | AI3: 20 | AJ3: 21 | AK3: 22 | AL3: 23 | AM3: 24 | AN3: 25 | AO3: 26 | AP3: 27 | AQ3: 28 | AR3: 29 | AS3: 30 | AT3: 31 | AU3: кол-во заказов | AV3: Даты заказов | AW3: Общая сумма
A4: КЛИЕНТ1 | R4: 2144 | AG4: 2144 | AQ4: 4354 | AU4: =COUNT(P4:AT4) -> 3 | AV4: =сцепитьдаты(P4:AT4,A$2) -> 3.5; 18.5; 28.5; | AW4: =SUM(P4:AT4) -> 8642
A5: КЛИЕНТ2 | Z5: 2144 | AO5: 4467 | AU5: =COUNT(P5:AT5) -> 2 | AV5: =сцепитьдаты(P5:AT5,A$2) -> 11.5; 26.5; | AW5: =SUM(P5:AT5) -> 6611
A6: КЛИЕНТ3 | P6: 1234 | U6: 2315 | AH6: 4467 | AJ6: 2315 | AU6: =COUNT(P6:AT6) -> 4 | AV6: =сцепитьдаты(P6:AT6,A$2) -> 1.5; 6.5; 19.5; 21.5; | AW6: =SUM(P6:AT6) -> 10331
A7: КЛИЕНТ4 | W7: 2132 | AC7: 2315 | AL7: 2132 | AU7: =COUNT(P7:AT7) -> 3 | AV7: =сцепитьдаты(P7:AT7,A$2) -> 8.5; 14.5; 23.5; | AW7: =SUM(P7:AT7) -> 6579
A8: КЛИЕНТ5 | AE8: 2132 | AU8: =COUNT(P8:AT8) -> 1 | AV8: =сцепитьдаты(P8:AT8,A$2) -> 16.5; | AW8: =SUM(P8:AT8) -> 2132
A9: КЛИЕНТ6 | AC9: 3245 | AU9: =COUNT(P9:AT9) -> 1 | AV9: =сцепитьдаты(P9:AT9,A$2) -> 14.5; | AW9: =SUM(P9:AT9) -> 3245
A10: КЛИЕНТ7 | Q10: 3499 | AN10: 1235 | AU10: =COUNT(P10:AT10) -> 2 | AV10: =сцепитьдаты(P10:AT10,A$2) -> 2.5; 25.5; | AW10: =SUM(P10:AT10) -> 4734
A11: КЛИЕНТ8 | AU11: =COUNT(P11:AT11) -> 0 | AV11: =сцепитьдаты(P11:AT11,A$2) ->  | AW11: =SUM(P11:AT11) -> 0
A12: КЛИЕНТ9 | AP12: 5487 | AU12: =COUNT(P12:AT12) -> 1 | AV12: =сцепитьдаты(P12:AT12,A$2) -> 27.5; | AW12: =SUM(P12:AT12) -> 5487
A13: КЛИЕНТ10 | AA13: 3337 | AE13: 5435 | AU13: =COUNT(P13:AT13) -> 2 | AV13: =сцепитьдаты(P13:AT13,A$2) -> 12.5; 16.5; | AW13: =SUM(P13:AT13) -> 8772
A14: ИТОГО | P14: =SUM(P4:P13) -> 1234 | Q14: 3499 | R14: 2144 | S14: 0 | T14: 0 | U14: 2315 | V14: 0 | W14: 2132 | X14: 0 | Y14: 0 | Z14: 2144 | AA14: 3337 | AB14: 0 | AC14: 5560 | AD14: =SUM(AD4:AD13) -> 0 | AE14: 7567 | AF14: 0 | AG14: 2144 | AH14: 4467 | AI14: 0 | AJ14: 2315 | AK14: 0 | AM14: =SUM(AM4:AM13) -> 0 | AN14: =SUM(AN4:AN13) -> 1235 | AO14: =SUM(AO4:AO13) -> 4467 | AP14: =SUM(AP4:AP13) -> 5487 | AW14: =SUM(AW4:AW13) -> 56533

Sheet мой
B1: ФЕВРАЛЬ | E1: МАРТ | H1: АПРЕЛЬ | K1: МАЙ
A2: Фамилия | B2: кол-во заказов | C2: Суммы ??? заказов | D2: Общая сумма | E2: Количество заказов | F2: Суммы заказов | G2: Общая сумма | H2: Количество заказов | I2: Суммы заказов | J2: Общая сумма | K2: Количество заказов | L2: Суммы заказов | M2: Общая сумма | N2: Даты заказов | O2: Общая сумма заказов
A3: КЛИЕНТ1 | B3: =IFERROR(INDEX(INDIRECT("'"&LOOKUP("яяя",$B$1:B$1)&"*'!Au:Au"),MATCH($A3,INDIRECT("'"&LOOKUP("яяя",$B$1:B$1)&"*'!A1:A99"),)),) -> 0 | C3: =IFERROR(INDEX(INDIRECT("'"&LOOKUP("яяя",$B$1:C$1)&"*'!Av:Av"),MATCH($A3,INDIRECT("'"&LOOKUP("яяя",$B$1:B$1)&"*'!A1:A99"),)),) ->  | D3: =IFERROR(INDEX(INDIRECT("'"&LOOKUP("яяя",$B$1:D$1)&"*'!Aw:Aw"),MATCH($A3,INDIRECT("'"&LOOKUP("яяя",$B$1:B$1)&"*'!A1:A99"),)),) -> 0 | E3: =IFERROR(INDEX(INDIRECT("'"&LOOKUP("яяя",$B$1:E$1)&"*'!Au:Au"),MATCH($A3,INDIRECT("'"&LOOKUP("яяя",$B$1:E$1)&"*'!A1:A99"),)),) -> 1 | F3: =IFERROR(INDEX(INDIRECT("'"&LOOKUP("яяя",$B$1:F$1)&"*'!Av:Av"),MATCH($A3,INDIRECT("'"&LOOKUP("яяя",$B$1:E$1)&"*'!A1:A99"),)),) -> 20.3; | G3: =IFERROR(INDEX(INDIRECT("'"&LOOKUP("яяя",$B$1:G$1)&"*'!Aw:Aw"),MATCH($A3,INDIRECT("'"&LOOKUP("яяя",$B$1:E$1)&"*'!A1:A99"),)),) -> 5565 | H3: =IFERROR(INDEX(INDIRECT("'"&LOOKUP("яяя",$B$1:H$1)&"*'!Au:Au"),MATCH($A3,INDIRECT("'"&LOOKUP("яяя",$B$1:H$1)&"*'!A1:A99"),)),) -> 1 | I3: =IFERROR(INDEX(INDIRECT("'"&LOOKUP("яяя",$B$1:I$1)&"*'!Av:Av"),MATCH($A3,INDIRECT("'"&LOOKUP("яяя",$B$1:H$1)&"*'!A1:A99"),)),) -> 5.4; | J3: =IFERROR(INDEX(INDIRECT("'"&LOOKUP("яяя",$B$1:J$1)&"*'!Aw:Aw"),MATCH($A3,INDIRECT("'"&LOOKUP("яяя",$B$1:H$1)&"*'!A1:A99"),)),) -> 5675 | K3: =IFERROR(INDEX(INDIRECT("'"&LOOKUP("яяя",$B$1:K$1)&"*'!Au:Au"),MATCH($A3,INDIRECT("'"&LOOKUP("яяя",$B$1:K$1)&"*'!A1:A99"),)),) -> 3 | L3: =IFERROR(INDEX(INDIRECT("'"&LOOKUP("яяя",$B$1:L$1)&"*'!Av:Av"),MATCH($A3,INDIRECT("'"&LOOKUP("яяя",$B$1:K$1)&"*'!A1:A99"),)),) -> 3.5; 18.5; 28.5; | M3: =IFERROR(INDEX(INDIRECT("'"&LOOKUP("яяя",$B$1:M$1)&"*'!Aw:Aw"),MATCH($A3,INDIRECT("'"&LOOKUP("яяя",$B$1:K$1)&"*'!A1:A99"),)),) -> 8642 | N3: =CONCATENATE(C3, F3, I3, L3) -> 20.3; 5.4; 3.5; 18.5; 28.5; | O3: =SUMIF(A$2:N$2,"Общая сумма ",A3:N3) -> 19882
A4: КЛИЕНТ2 | B4: =IFERROR(INDEX(INDIRECT("'"&LOOKUP("яяя",$B$1:B$1)&"*'!Au:Au"),MATCH($A4,INDIRECT("'"&LOOKUP("яяя",$B$1:B$1)&"*'!A1:A99"),)),) -> 2 | C4: =IFERROR(INDEX(INDIRECT("'"&LOOKUP("яяя",$B$1:C$1)&"*'!Av:Av"),MATCH($A4,INDIRECT("'"&LOOKUP("яяя",$B$1:B$1)&"*'!A1:A99"),)),) -> 16.2; 21.2; | D4: =IFERROR(INDEX(INDIRECT("'"&LOOKUP("яяя",$B$1:D$1)&"*'!Aw:Aw"),MATCH($A4,INDIRECT("'"&LOOKUP("яяя",$B$1:B$1)&"*'!A1:A99"),)),) -> 10031 | E4: =IFERROR(INDEX(INDIRECT("'"&LOOKUP("яяя",$B$1:E$1)&"*'!Au:Au"),MATCH($A4,INDIRECT("'"&LOOKUP("яяя",$B$1:E$1)&"*'!A1:A99"),)),) -> 1 | F4: =IFERROR(INDEX(INDIRECT("'"&LOOKUP("яяя",$B$1:F$1)&"*'!Av:Av"),MATCH($A4,INDIRECT("'"&LOOKUP("яяя",$B$1:E$1)&"*'!A1:A99"),)),) -> 16.3; | G4: =IFERROR(INDEX(INDIRECT("'"&LOOKUP("яяя",$B$1:G$1)&"*'!Aw:Aw"),MATCH($A4,INDIRECT("'"&LOOKUP("яяя",$B$1:E$1)&"*'!A1:A99"),)),) -> 3454 | H4: =IFERROR(INDEX(INDIRECT("'"&LOOKUP("яяя",$B$1:H$1)&"*'!Au:Au"),MATCH($A4,INDIRECT("'"&LOOKUP("яяя",$B$1:H$1)&"*'!A1:A99"),)),) -> 1 | I4: =IFERROR(INDEX(INDIRECT("'"&LOOKUP("яяя",$B$1:I$1)&"*'!Av:Av"),MATCH($A4,INDIRECT("'"&LOOKUP("яяя",$B$1:H$1)&"*'!A1:A99"),)),) -> 16.4; | J4: =IFERROR(INDEX(INDIRECT("'"&LOOKUP("яяя",$B$1:J$1)&"*'!Aw:Aw"),MATCH($A4,INDIRECT("'"&LOOKUP("яяя",$B$1:H$1)&"*'!A1:A99"),)),) -> 3454 | K4: =IFERROR(INDEX(INDIRECT("'"&LOOKUP("яяя",$B$1:K$1)&"*'!Au:Au"),MATCH($A4,INDIRECT("'"&LOOKUP("яяя",$B$1:K$1)&"*'!A1:A99"),)),) -> 2 | L4: =IFERROR(INDEX(INDIRECT("'"&LOOKUP("яяя",$B$1:L$1)&"*'!Av:Av"),MATCH($A4,INDIRECT("'"&LOOKUP("яяя",$B$1:K$1)&"*'!A1:A99"),)),) -> 11.5; 26.5; | M4: =IFERROR(INDEX(INDIRECT("'"&LOOKUP("яяя",$B$1:M$1)&"*'!Aw:Aw"),MATCH($A4,INDIRECT("'"&LOOKUP("яяя",$B$1:K$1)&"*'!A1:A99"),)),) -> 6611 | N4: =CONCATENATE(C4, F4, I4, L4) -> 16.2; 21.2; 16.3; 16.4; 11.5; 26.5; | O4: =SUMIF(A$2:N$2,"Общая сумма ",A4:N4) -> 23550
A5: КЛИЕНТ3 | B5: =IFERROR(INDEX(INDIRECT("'"&LOOKUP("яяя",$B$1:B$1)&"*'!Au:Au"),MATCH($A5,INDIRECT("'"&LOOKUP("яяя",$B$1:B$1)&"*'!A1:A99"),)),) -> 1 | C5: =IFERROR(INDEX(INDIRECT("'"&LOOKUP("яяя",$B$1:C$1)&"*'!Av:Av"),MATCH($A5,INDIRECT("'"&LOOKUP("яяя",$B$1:B$1)&"*'!A1:A99"),)),) -> 17.2; | D5: =IFERROR(INDEX(INDIRECT("'"&LOOKUP("яяя",$B$1:D$1)&"*'!Aw:Aw"),MATCH($A5,INDIRECT("'"&LOOKUP("яяя",$B$1:B$1)&"*'!A1:A99"),)),) -> 5675 | E5: =IFERROR(INDEX(INDIRECT("'"&LOOKUP("яяя",$B$1:E$1)&"*'!Au:Au"),MATCH($A5,INDIRECT("'"&LOOKUP("яяя",$B$1:E$1)&"*'!A1:A99"),)),) -> 3 | F5: =IFERROR(INDEX(INDIRECT("'"&LOOKUP("яяя",$B$1:F$1)&"*'!Av:Av"),MATCH($A5,INDIRECT("'"&LOOKUP("яяя",$B$1:E$1)&"*'!A1:A99"),)),) -> 6.3; 11.3; 17.3; | G5: =IFERROR(INDEX(INDIRECT("'"&LOOKUP("яяя",$B$1:G$1)&"*'!Aw:Aw"),MATCH($A5,INDIRECT("'"&LOOKUP("яяя",$B$1:E$1)&"*'!A1:A99"),)),) -> 12709 | H5: =IFERROR(INDEX(INDIRECT("'"&LOOKUP("яяя",$B$1:H$1)&"*'!Au:Au"),MATCH($A5,INDIRECT("'"&LOOKUP("яяя",$B$1:H$1)&"*'!A1:A99"),)),) -> 2 | I5: =IFERROR(INDEX(INDIRECT("'"&LOOKUP("яяя",$B$1:I$1)&"*'!Av:Av"),MATCH($A5,INDIRECT("'"&LOOKUP("яяя",$B$1:H$1)&"*'!A1:A99"),)),) -> 10.4; 17.4; | J5: =IFERROR(INDEX(INDIRECT("'"&LOOKUP("яяя",$B$1:J$1)&"*'!Aw:Aw"),MATCH($A5,INDIRECT("'"&LOOKUP("яяя",$B$1:H$1)&"*'!A1:A99"),)),) -> 8020 | K5: =IFERROR(INDEX(INDIRECT("'"&LOOKUP("яяя",$B$1:K$1)&"*'!Au:Au"),MATCH($A5,INDIRECT("'"&LOOKUP("яяя",$B$1:K$1)&"*'!A1:A99"),)),) -> 4 | L5: =IFERROR(INDEX(INDIRECT("'"&LOOKUP("яяя",$B$1:L$1)&"*'!Av:Av"),MATCH($A5,INDIRECT("'"&LOOKUP("яяя",$B$1:K$1)&"*'!A1:A99"),)),) -> 1.5; 6.5; 19.5; 21.5; | M5: =IFERROR(INDEX(INDIRECT("'"&LOOKUP("яяя",$B$1:M$1)&"*'!Aw:Aw"),MATCH($A5,INDIRECT("'"&LOOKUP("яяя",$B$1:K$1)&"*'!A1:A99"),)),) -> 10331 | N5: 17.2; 6.3; 11.3; 17.3; 10.4; 17.4; 1.5; 6.5; 19.5; 21.5; | O5: 36735
A6: КЛИЕНТ4 | B6: =IFERROR(INDEX(INDIRECT("'"&LOOKUP("яяя",$B$1:B$1)&"*'!Au:Au"),MATCH($A6,INDIRECT("'"&LOOKUP("яяя",$B$1:B$1)&"*'!A1:A99"),)),) -> 2 | C6: =IFERROR(INDEX(INDIRECT("'"&LOOKUP("яяя",$B$1:C$1)&"*'!Av:Av"),MATCH($A6,INDIRECT("'"&LOOKUP("яяя",$B$1:B$1)&"*'!A1:A99"),)),) -> 7.2; 28.2; | D6: =IFERROR(INDEX(INDIRECT("'"&LOOKUP("яяя",$B$1:D$1)&"*'!Aw:Aw"),MATCH($A6,INDIRECT("'"&LOOKUP("яяя",$B$1:B$1)&"*'!A1:A99"),)),) -> 4800 | E6: =IFERROR(INDEX(INDIRECT("'"&LOOKUP("яяя",$B$1:E$1)&"*'!Au:Au"),MATCH($A6,INDIRECT("'"&LOOKUP("яяя",$B$1:E$1)&"*'!A1:A99"),)),) -> 0 | F6: =IFERROR(INDEX(INDIRECT("'"&LOOKUP("яяя",$B$1:F$1)&"*'!Av:Av"),MATCH($A6,INDIRECT("'"&LOOKUP("яяя",$B$1:E$1)&"*'!A1:A99"),)),) ->  | G6: =IFERROR(INDEX(INDIRECT("'"&LOOKUP("яяя",$B$1:G$1)&"*'!Aw:Aw"),MATCH($A6,INDIRECT("'"&LOOKUP("яяя",$B$1:E$1)&"*'!A1:A99"),)),) -> 0 | H6: =IFERROR(INDEX(INDIRECT("'"&LOOKUP("яяя",$B$1:H$1)&"*'!Au:Au"),MATCH($A6,INDIRECT("'"&LOOKUP("яяя",$B$1:H$1)&"*'!A1:A99"),)),) -> 1 | I6: =IFERROR(INDEX(INDIRECT("'"&LOOKUP("яяя",$B$1:I$1)&"*'!Av:Av"),MATCH($A6,INDIRECT("'"&LOOKUP("яяя",$B$1:H$1)&"*'!A1:A99"),)),) -> 7.4; | J6: =IFERROR(INDEX(INDIRECT("'"&LOOKUP("яяя",$B$1:J$1)&"*'!Aw:Aw"),MATCH($A6,INDIRECT("'"&LOOKUP("яяя",$B$1:H$1)&"*'!A1:A99"),)),) -> 4565 | K6: =IFERROR(INDEX(INDIRECT("'"&LOOKUP("яяя",$B$1:K$1)&"*'!Au:Au"),MATCH($A6,INDIRECT("'"&LOOKUP("яяя",$B$1:K$1)&"*'!A1:A99"),)),) -> 3 | L6: =IFERROR(INDEX(INDIRECT("'"&LOOKUP("яяя",$B$1:L$1)&"*'!Av:Av"),MATCH($A6,INDIRECT("'"&LOOKUP("яяя",$B$1:K$1)&"*'!A1:A99"),)),) -> 8.5; 14.5; 23.5; | M6: =IFERROR(INDEX(INDIRECT("'"&LOOKUP("яяя",$B$1:M$1)&"*'!Aw:Aw"),MATCH($A6,INDIRECT("'"&LOOKUP("яяя",$B$1:K$1)&"*'!A1:A99"),)),) -> 6579 | N6: 7.2; 28.2; 7.4; 8.5; 14.5; 23.5; | O6: 15944
A7: КЛИЕНТ5 | B7: =IFERROR(INDEX(INDIRECT("'"&LOOKUP("яяя",$B$1:B$1)&"*'!Au:Au"),MATCH($A7,INDIRECT("'"&LOOKUP("яяя",$B$1:B$1)&"*'!A1:A99"),)),) -> 0 | C7: =IFERROR(INDEX(INDIRECT("'"&LOOKUP("яяя",$B$1:C$1)&"*'!Av:Av"),MATCH($A7,INDIRECT("'"&LOOKUP("яяя",$B$1:B$1)&"*'!A1:A99"),)),) -> 0 | D7: =IFERROR(INDEX(INDIRECT("'"&LOOKUP("яяя",$B$1:D$1)&"*'!Aw:Aw"),MATCH($A7,INDIRECT("'"&LOOKUP("яяя",$B$1:B$1)&"*'!A1:A99"),)),) -> 0 | E7: =IFERROR(INDEX(INDIRECT("'"&LOOKUP("яяя",$B$1:E$1)&"*'!Au:Au"),MATCH($A7,INDIRECT("'"&LOOKUP("яяя",$B$1:E$1)&"*'!A1:A99"),)),) -> 1 | F7: =IFERROR(INDEX(INDIRECT("'"&LOOKUP("яяя",$B$1:F$1)&"*'!Av:Av"),MATCH($A7,INDIRECT("'"&LOOKUP("яяя",$B$1:E$1)&"*'!A1:A99"),)),) -> 22.3; | G7: =IFERROR(INDEX(INDIRECT("'"&LOOKUP("яяя",$B$1:G$1)&"*'!Aw:Aw"),MATCH($A7,INDIRECT("'"&LOOKUP("яяя",$B$1:E$1)&"*'!A1:A99"),)),) -> 2345 | H7: =IFERROR(INDEX(INDIRECT("'"&LOOKUP("яяя",$B$1:H$1)&"*'!Au:Au"),MATCH($A7,INDIRECT("'"&LOOKUP("яяя",$B$1:H$1)&"*'!A1:A99"),)),) -> 2 | I7: =IFERROR(INDEX(INDIRECT("'"&LOOKUP("яяя",$B$1:I$1)&"*'!Av:Av"),MATCH($A7,INDIRECT("'"&LOOKUP("яяя",$B$1:H$1)&"*'!A1:A99"),)),) -> 14.4; 22.4; | J7: =IFERROR(INDEX(INDIRECT("'"&LOOKUP("яяя",$B$1:J$1)&"*'!Aw:Aw"),MATCH($A7,INDIRECT("'"&LOOKUP("яяя",$B$1:H$1)&"*'!A1:A99"),)),) -> 4690 | K7: =IFERROR(INDEX(INDIRECT("'"&LOOKUP("яяя",$B$1:K$1)&"*'!Au:Au"),MATCH($A7,INDIRECT("'"&LOOKUP("яяя",$B$1:K$1)&"*'!A1:A99"),)),) -> 1 | L7: =IFERROR(INDEX(INDIRECT("'"&LOOKUP("яяя",$B$1:L$1)&"*'!Av:Av"),MATCH($A7,INDIRECT("'"&LOOKUP("яяя",$B$1:K$1)&"*'!A1:A99"),)),) -> 16.5; | M7: =IFERROR(INDEX(INDIRECT("'"&LOOKUP("яяя",$B$1:M$1)&"*'!Aw:Aw"),MATCH($A7,INDIRECT("'"&LOOKUP("яяя",$B$1:K$1)&"*'!A1:A99"),)),) -> 2132 | N7: 022.3; 14.4; 22.4; 16.5; | O7: 9167
A8: КЛИЕНТ6 | B8: =IFERROR(INDEX(INDIRECT("'"&LOOKUP("яяя",$B$1:B$1)&"*'!Au:Au"),MATCH($A8,INDIRECT("'"&LOOKUP("яяя",$B$1:B$1)&"*'!A1:A99"),)),) -> 0 | C8: =IFERROR(INDEX(INDIRECT("'"&LOOKUP("яяя",$B$1:C$1)&"*'!Av:Av"),MATCH($A8,INDIRECT("'"&LOOKUP("яяя",$B$1:B$1)&"*'!A1:A99"),)),) -> 0 | D8: =IFERROR(INDEX(INDIRECT("'"&LOOKUP("яяя",$B$1:D$1)&"*'!Aw:Aw"),MATCH($A8,INDIRECT("'"&LOOKUP("яяя",$B$1:B$1)&"*'!A1:A99"),)),) -> 0 | E8: =IFERROR(INDEX(INDIRECT("'"&LOOKUP("яяя",$B$1:E$1)&"*'!Au:Au"),MATCH($A8,INDIRECT("'"&LOOKUP("яяя",$B$1:E$1)&"*'!A1:A99"),)),) -> 2 | F8: =IFERROR(INDEX(INDIRECT("'"&LOOKUP("яяя",$B$1:F$1)&"*'!Av:Av"),MATCH($A8,INDIRECT("'"&LOOKUP("яяя",$B$1:E$1)&"*'!A1:A99"),)),) -> 4.3; 19.3; | G8: =IFERROR(INDEX(INDIRECT("'"&LOOKUP("яяя",$B$1:G$1)&"*'!Aw:Aw"),MATCH($A8,INDIRECT("'"&LOOKUP("яяя",$B$1:E$1)&"*'!A1:A99"),)),) -> 5778 | H8: =IFERROR(INDEX(INDIRECT("'"&LOOKUP("яяя",$B$1:H$1)&"*'!Au:Au"),MATCH($A8,INDIRECT("'"&LOOKUP("яяя",$B$1:H$1)&"*'!A1:A99"),)),) -> 3 | I8: =IFERROR(INDEX(INDIRECT("'"&LOOKUP("яяя",$B$1:I$1)&"*'!Av:Av"),MATCH($A8,INDIRECT("'"&LOOKUP("яяя",$B$1:H$1)&"*'!A1:A99"),)),) -> 9.4; 11.4; 19.4; | J8: =IFERROR(INDEX(INDIRECT("'"&LOOKUP("яяя",$B$1:J$1)&"*'!Aw:Aw"),MATCH($A8,INDIRECT("'"&LOOKUP("яяя",$B$1:H$1)&"*'!A1:A99"),)),) -> 11364 | K8: =IFERROR(INDEX(INDIRECT("'"&LOOKUP("яяя",$B$1:K$1)&"*'!Au:Au"),MATCH($A8,INDIRECT("'"&LOOKUP("яяя",$B$1:K$1)&"*'!A1:A99"),)),) -> 1 | L8: =IFERROR(INDEX(INDIRECT("'"&LOOKUP("яяя",$B$1:L$1)&"*'!Av:Av"),MATCH($A8,INDIRECT("'"&LOOKUP("яяя",$B$1:K$1)&"*'!A1:A99"),)),) -> 14.5; | M8: =IFERROR(INDEX(INDIRECT("'"&LOOKUP("яяя",$B$1:M$1)&"*'!Aw:Aw"),MATCH($A8,INDIRECT("'"&LOOKUP("яяя",$B$1:K$1)&"*'!A1:A99"),)),) -> 3245 | N8: 04.3; 19.3; 9.4; 11.4; 19.4; 14.5; | O8: 20387
A9: КЛИЕНТ7 | B9: =IFERROR(INDEX(INDIRECT("'"&LOOKUP("яяя",$B$1:B$1)&"*'!Au:Au"),MATCH($A9,INDIRECT("'"&LOOKUP("яяя",$B$1:B$1)&"*'!A1:A99"),)),) -> 0 | C9: =IFERROR(INDEX(INDIRECT("'"&LOOKUP("яяя",$B$1:C$1)&"*'!Av:Av"),MATCH($A9,INDIRECT("'"&LOOKUP("яяя",$B$1:B$1)&"*'!A1:A99"),)),) -> 0 | D9: =IFERROR(INDEX(INDIRECT("'"&LOOKUP("яяя",$B$1:D$1)&"*'!Aw:Aw"),MATCH($A9,INDIRECT("'"&LOOKUP("яяя",$B$1:B$1)&"*'!A1:A99"),)),) -> 0 | E9: =IFERROR(INDEX(INDIRECT("'"&LOOKUP("яяя",$B$1:E$1)&"*'!Au:Au"),MATCH($A9,INDIRECT("'"&LOOKUP("яяя",$B$1:E$1)&"*'!A1:A99"),)),) -> 0 | F9: =IFERROR(INDEX(INDIRECT("'"&LOOKUP("яяя",$B$1:F$1)&"*'!Av:Av"),MATCH($A9,INDIRECT("'"&LOOKUP("яяя",$B$1:E$1)&"*'!A1:A99"),)),) -> 0 | G9: =IFERROR(INDEX(INDIRECT("'"&LOOKUP("яяя",$B$1:G$1)&"*'!Aw:Aw"),MATCH($A9,INDIRECT("'"&LOOKUP("яяя",$B$1:E$1)&"*'!A1:A99"),)),) -> 0 | H9: =IFERROR(INDEX(INDIRECT("'"&LOOKUP("яяя",$B$1:H$1)&"*'!Au:Au"),MATCH($A9,INDIRECT("'"&LOOKUP("яяя",$B$1:H$1)&"*'!A1:A99"),)),) -> 0 | I9: =IFERROR(INDEX(INDIRECT("'"&LOOKUP("яяя",$B$1:I$1)&"*'!Av:Av"),MATCH($A9,INDIRECT("'"&LOOKUP("яяя",$B$1:H$1)&"*'!A1:A99"),)),) ->  | J9: =IFERROR(INDEX(INDIRECT("'"&LOOKUP("яяя",$B$1:J$1)&"*'!Aw:Aw"),MATCH($A9,INDIRECT("'"&LOOKUP("яяя",$B$1:H$1)&"*'!A1:A99"),)),) -> 0 | K9: =IFERROR(INDEX(INDIRECT("'"&LOOKUP("яяя",$B$1:K$1)&"*'!Au:Au"),MATCH($A9,INDIRECT("'"&LOOKUP("яяя",$B$1:K$1)&"*'!A1:A99"),)),) -> 2 | L9: =IFERROR(INDEX(INDIRECT("'"&LOOKUP("яяя",$B$1:L$1)&"*'!Av:Av"),MATCH($A9,INDIRECT("'"&LOOKUP("яяя",$B$1:K$1)&"*'!A1:A99"),)),) -> 2.5; 25.5; | M9: =IFERROR(INDEX(INDIRECT("'"&LOOKUP("яяя",$B$1:M$1)&"*'!Aw:Aw"),MATCH($A9,INDIRECT("'"&LOOKUP("яяя",$B$1:K$1)&"*'!A1:A99"),)),) -> 4734 | N9: 002.5; 25.5; | O9: 4734
A10: КЛИЕНТ8 | B10: =IFERROR(INDEX(INDIRECT("'"&LOOKUP("яяя",$B$1:B$1)&"*'!Au:Au"),MATCH($A10,INDIRECT("'"&LOOKUP("яяя",$B$1:B$1)&"*'!A1:A99"),)),) -> 0 | C10: =IFERROR(INDEX(INDIRECT("'"&LOOKUP("яяя",$B$1:C$1)&"*'!Av:Av"),MATCH($A10,INDIRECT("'"&LOOKUP("яяя",$B$1:B$1)&"*'!A1:A99"),)),) -> 0 | D10: =IFERROR(INDEX(INDIRECT("'"&LOOKUP("яяя",$B$1:D$1)&"*'!Aw:Aw"),MATCH($A10,INDIRECT("'"&LOOKUP("яяя",$B$1:B$1)&"*'!A1:A99"),)),) -> 0 | E10: =IFERROR(INDEX(INDIRECT("'"&LOOKUP("яяя",$B$1:E$1)&"*'!Au:Au"),MATCH($A10,INDIRECT("'"&LOOKUP("яяя",$B$1:E$1)&"*'!A1:A99"),)),) -> 0 | F10: =IFERROR(INDEX(INDIRECT("'"&LOOKUP("яяя",$B$1:F$1)&"*'!Av:Av"),MATCH($A10,INDIRECT("'"&LOOKUP("яяя",$B$1:E$1)&"*'!A1:A99"),)),) -> 0 | G10: =IFERROR(INDEX(INDIRECT("'"&LOOKUP("яяя",$B$1:G$1)&"*'!Aw:Aw"),MATCH($A10,INDIRECT("'"&LOOKUP("яяя",$B$1:E$1)&"*'!A1:A99"),)),) -> 0 | H10: =IFERROR(INDEX(INDIRECT("'"&LOOKUP("яяя",$B$1:H$1)&"*'!Au:Au"),MATCH($A10,INDIRECT("'"&LOOKUP("яяя",$B$1:H$1)&"*'!A1:A99"),)),) -> 3 | I10: =IFERROR(INDEX(INDIRECT("'"&LOOKUP("яяя",$B$1:I$1)&"*'!Av:Av"),MATCH($A10,INDIRECT("'"&LOOKUP("яяя",$B$1:H$1)&"*'!A1:A99"),)),) -> 13.4; 16.4; 21.4; | J10: =IFERROR(INDEX(INDIRECT("'"&LOOKUP("яяя",$B$1:J$1)&"*'!Aw:Aw"),MATCH($A10,INDIRECT("'"&LOOKUP("яяя",$B$1:H$1)&"*'!A1:A99"),)),) -> 5589 | K10: =IFERROR(INDEX(INDIRECT("'"&LOOKUP("яяя",$B$1:K$1)&"*'!Au:Au"),MATCH($A10,INDIRECT("'"&LOOKUP("яяя",$B$1:K$1)&"*'!A1:A99"),)),) -> 0 | L10: =IFERROR(INDEX(INDIRECT("'"&LOOKUP("яяя",$B$1:L$1)&"*'!Av:Av"),MATCH($A10,INDIRECT("'"&LOOKUP("яяя",$B$1:K$1)&"*'!A1:A99"),)),) ->  | M10: =IFERROR(INDEX(INDIRECT("'"&LOOKUP("яяя",$B$1:M$1)&"*'!Aw:Aw"),MATCH($A10,INDIRECT("'"&LOOKUP("яяя",$B$1:K$1)&"*'!A1:A99"),)),) -> 0 | N10: 0013.4; 16.4; 21.4; | O10: 5589
A11: КЛИЕНТ9 | B11: =IFERROR(INDEX(INDIRECT("'"&LOOKUP("яяя",$B$1:B$1)&"*'!Au:Au"),MATCH($A11,INDIRECT("'"&LOOKUP("яяя",$B$1:B$1)&"*'!A1:A99"),)),) -> 0 | C11: =IFERROR(INDEX(INDIRECT("'"&LOOKUP("яяя",$B$1:C$1)&"*'!Av:Av"),MATCH($A11,INDIRECT("'"&LOOKUP("яяя",$B$1:B$1)&"*'!A1:A99"),)),) -> 0 | D11: =IFERROR(INDEX(INDIRECT("'"&LOOKUP("яяя",$B$1:D$1)&"*'!Aw:Aw"),MATCH($A11,INDIRECT("'"&LOOKUP("яяя",$B$1:B$1)&"*'!A1:A99"),)),) -> 0 | E11: =IFERROR(INDEX(INDIRECT("'"&LOOKUP("яяя",$B$1:E$1)&"*'!Au:Au"),MATCH($A11,INDIRECT("'"&LOOKUP("яяя",$B$1:E$1)&"*'!A1:A99"),)),) -> 0 | F11: =IFERROR(INDEX(INDIRECT("'"&LOOKUP("яяя",$B$1:F$1)&"*'!Av:Av"),MATCH($A11,INDIRECT("'"&LOOKUP("яяя",$B$1:E$1)&"*'!A1:A99"),)),) -> 0 | G11: =IFERROR(INDEX(INDIRECT("'"&LOOKUP("яяя",$B$1:G$1)&"*'!Aw:Aw"),MATCH($A11,INDIRECT("'"&LOOKUP("яяя",$B$1:E$1)&"*'!A1:A99"),)),) -> 0 | H11: =IFERROR(INDEX(INDIRECT("'"&LOOKUP("яяя",$B$1:H$1)&"*'!Au:Au"),MATCH($A11,INDIRECT("'"&LOOKUP("яяя",$B$1:H$1)&"*'!A1:A99"),)),) -> 0 | I11: =IFERROR(INDEX(INDIRECT("'"&LOOKUP("яяя",$B$1:I$1)&"*'!Av:Av"),MATCH($A11,INDIRECT("'"&LOOKUP("яяя",$B$1:H$1)&"*'!A1:A99"),)),) -> 0 | J11: =IFERROR(INDEX(INDIRECT("'"&LOOKUP("яяя",$B$1:J$1)&"*'!Aw:Aw"),MATCH($A11,INDIRECT("'"&LOOKUP("яяя",$B$1:H$1)&"*'!A1:A99"),)),) -> 0 | K11: =IFERROR(INDEX(INDIRECT("'"&LOOKUP("яяя",$B$1:K$1)&"*'!Au:Au"),MATCH($A11,INDIRECT("'"&LOOKUP("яяя",$B$1:K$1)&"*'!A1:A99"),)),) -> 1 | L11: =IFERROR(INDEX(INDIRECT("'"&LOOKUP("яяя",$B$1:L$1)&"*'!Av:Av"),MATCH($A11,INDIRECT("'"&LOOKUP("яяя",$B$1:K$1)&"*'!A1:A99"),)),) -> 27.5; | M11: =IFERROR(INDEX(INDIRECT("'"&LOOKUP("яяя",$B$1:M$1)&"*'!Aw:Aw"),MATCH($A11,INDIRECT("'"&LOOKUP("яяя",$B$1:K$1)&"*'!A1:A99"),)),) -> 5487 | N11: 00027.5; | O11: 5487
A12: КЛИЕНТ10 | B12: =IFERROR(INDEX(INDIRECT("'"&LOOKUP("яяя",$B$1:B$1)&"*'!Au:Au"),MATCH($A12,INDIRECT("'"&LOOKUP("яяя",$B$1:B$1)&"*'!A1:A99"),)),) -> 0 | C12: =IFERROR(INDEX(INDIRECT("'"&LOOKUP("яяя",$B$1:C$1)&"*'!Av:Av"),MATCH($A12,INDIRECT("'"&LOOKUP("яяя",$B$1:B$1)&"*'!A1:A99"),)),) -> 0 | D12: =IFERROR(INDEX(INDIRECT("'"&LOOKUP("яяя",$B$1:D$1)&"*'!Aw:Aw"),MATCH($A12,INDIRECT("'"&LOOKUP("яяя",$B$1:B$1)&"*'!A1:A99"),)),) -> 0 | E12: =IFERROR(INDEX(INDIRECT("'"&LOOKUP("яяя",$B$1:E$1)&"*'!Au:Au"),MATCH($A12,INDIRECT("'"&LOOKUP("яяя",$B$1:E$1)&"*'!A1:A99"),)),) -> 0 | F12: =IFERROR(INDEX(INDIRECT("'"&LOOKUP("яяя",$B$1:F$1)&"*'!Av:Av"),MATCH($A12,INDIRECT("'"&LOOKUP("яяя",$B$1:E$1)&"*'!A1:A99"),)),) -> 0 | G12: =IFERROR(INDEX(INDIRECT("'"&LOOKUP("яяя",$B$1:G$1)&"*'!Aw:Aw"),MATCH($A12,INDIRECT("'"&LOOKUP("яяя",$B$1:E$1)&"*'!A1:A99"),)),) -> 0 | H12: =IFERROR(INDEX(INDIRECT("'"&LOOKUP("яяя",$B$1:H$1)&"*'!Au:Au"),MATCH($A12,INDIRECT("'"&LOOKUP("яяя",$B$1:H$1)&"*'!A1:A99"),)),) -> 0 | I12: =IFERROR(INDEX(INDIRECT("'"&LOOKUP("яяя",$B$1:I$1)&"*'!Av:Av"),MATCH($A12,INDIRECT("'"&LOOKUP("яяя",$B$1:H$1)&"*'!A1:A99"),)),) -> 0 | J12: =IFERROR(INDEX(INDIRECT("'"&LOOKUP("яяя",$B$1:J$1)&"*'!Aw:Aw"),MATCH($A12,INDIRECT("'"&LOOKUP("яяя",$B$1:H$1)&"*'!A1:A99"),)),) -> 0 | K12: =IFERROR(INDEX(INDIRECT("'"&LOOKUP("яяя",$B$1:K$1)&"*'!Au:Au"),MATCH($A12,INDIRECT("'"&LOOKUP("яяя",$B$1:K$1)&"*'!A1:A99"),)),) -> 2 | L12: =IFERROR(INDEX(INDIRECT("'"&LOOKUP("яяя",$B$1:L$1)&"*'!Av:Av"),MATCH($A12,INDIRECT("'"&LOOKUP("яяя",$B$1:K$1)&"*'!A1:A99"),)),) -> 12.5; 16.5; | M12: =IFERROR(INDEX(INDIRECT("'"&LOOKUP("яяя",$B$1:M$1)&"*'!Aw:Aw"),MATCH($A12,INDIRECT("'"&LOOKUP("яяя",$B$1:K$1)&"*'!A1:A99"),)),) -> 8772 | N12: 00012.5; 16.5; | O12: 8772
B13: =IFERROR(INDEX(INDIRECT("'"&LOOKUP("яяя",$B$1:B$1)&"*'!Au:Au"),MATCH($A13,INDIRECT("'"&LOOKUP("яяя",$B$1:B$1)&"*'!A1:A99"),)),) -> 0 | C13: =IFERROR(INDEX(INDIRECT("'"&LOOKUP("яяя",$B$1:C$1)&"*'!Av:Av"),MATCH($A13,INDIRECT("'"&LOOKUP("яяя",$B$1:B$1)&"*'!A1:A99"),)),) -> 0 | D13: =IFERROR(INDEX(INDIRECT("'"&LOOKUP("яяя",$B$1:D$1)&"*'!Aw:Aw"),MATCH($A13,INDIRECT("'"&LOOKUP("яяя",$B$1:B$1)&"*'!A1:A99"),)),) -> 0 | E13: =IFERROR(INDEX(INDIRECT("'"&LOOKUP("яяя",$B$1:E$1)&"*'!Au:Au"),MATCH($A13,INDIRECT("'"&LOOKUP("яяя",$B$1:E$1)&"*'!A1:A99"),)),) -> 0 | F13: =IFERROR(INDEX(INDIRECT("'"&LOOKUP("яяя",$B$1:F$1)&"*'!Av:Av"),MATCH($A13,INDIRECT("'"&LOOKUP("яяя",$B$1:E$1)&"*'!A1:A99"),)),) -> 0 | G13: =IFERROR(INDEX(INDIRECT("'"&LOOKUP("яяя",$B$1:G$1)&"*'!Aw:Aw"),MATCH($A13,INDIRECT("'"&LOOKUP("яяя",$B$1:E$1)&"*'!A1:A99"),)),) -> 0 | H13: =IFERROR(INDEX(INDIRECT("'"&LOOKUP("яяя",$B$1:H$1)&"*'!Au:Au"),MATCH($A13,INDIRECT("'"&LOOKUP("яяя",$B$1:H$1)&"*'!A1:A99"),)),) -> 0 | I13: =IFERROR(INDEX(INDIRECT("'"&LOOKUP("яяя",$B$1:I$1)&"*'!Av:Av"),MATCH($A13,INDIRECT("'"&LOOKUP("яяя",$B$1:H$1)&"*'!A1:A99"),)),) -> 0 | J13: =IFERROR(INDEX(INDIRECT("'"&LOOKUP("яяя",$B$1:J$1)&"*'!Aw:Aw"),MATCH($A13,INDIRECT("'"&LOOKUP("яяя",$B$1:H$1)&"*'!A1:A99"),)),) -> 0 | K13: =IFERROR(INDEX(INDIRECT("'"&LOOKUP("яяя",$B$1:K$1)&"*'!Au:Au"),MATCH($A13,INDIRECT("'"&LOOKUP("яяя",$B$1:K$1)&"*'!A1:A99"),)),) -> 0 | L13: =IFERROR(INDEX(INDIRECT("'"&LOOKUP("яяя",$B$1:L$1)&"*'!Av:Av"),MATCH($A13,INDIRECT("'"&LOOKUP("яяя",$B$1:K$1)&"*'!A1:A99"),)),) -> 0 | M13: =IFERROR(INDEX(INDIRECT("'"&LOOKUP("яяя",$B$1:M$1)&"*'!Aw:Aw"),MATCH($A13,INDIRECT("'"&LOOKUP("яяя",$B$1:K$1)&"*'!A1:A99"),)),) -> 0 | O13: 0
B14: =IFERROR(INDEX(INDIRECT("'"&LOOKUP("яяя",$B$1:B$1)&"*'!Au:Au"),MATCH($A14,INDIRECT("'"&LOOKUP("яяя",$B$1:B$1)&"*'!A1:A99"),)),) -> 0 | C14: =IFERROR(INDEX(INDIRECT("'"&LOOKUP("яяя",$B$1:C$1)&"*'!Av:Av"),MATCH($A14,INDIRECT("'"&LOOKUP("яяя",$B$1:B$1)&"*'!A1:A99"),)),) -> 0 | D14: =IFERROR(INDEX(INDIRECT("'"&LOOKUP("яяя",$B$1:D$1)&"*'!Aw:Aw"),MATCH($A14,INDIRECT("'"&LOOKUP("яяя",$B$1:B$1)&"*'!A1:A99"),)),) -> 0 | E14: =IFERROR(INDEX(INDIRECT("'"&LOOKUP("яяя",$B$1:E$1)&"*'!Au:Au"),MATCH($A14,INDIRECT("'"&LOOKUP("яяя",$B$1:E$1)&"*'!A1:A99"),)),) -> 0 | F14: =IFERROR(INDEX(INDIRECT("'"&LOOKUP("яяя",$B$1:F$1)&"*'!Av:Av"),MATCH($A14,INDIRECT("'"&LOOKUP("яяя",$B$1:E$1)&"*'!A1:A99"),)),) -> 0 | G14: =IFERROR(INDEX(INDIRECT("'"&LOOKUP("яяя",$B$1:G$1)&"*'!Aw:Aw"),MATCH($A14,INDIRECT("'"&LOOKUP("яяя",$B$1:E$1)&"*'!A1:A99"),)),) -> 0 | H14: =IFERROR(INDEX(INDIRECT("'"&LOOKUP("яяя",$B$1:H$1)&"*'!Au:Au"),MATCH($A14,INDIRECT("'"&LOOKUP("яяя",$B$1:H$1)&"*'!A1:A99"),)),) -> 0 | I14: =IFERROR(INDEX(INDIRECT("'"&LOOKUP("яяя",$B$1:I$1)&"*'!Av:Av"),MATCH($A14,INDIRECT("'"&LOOKUP("яяя",$B$1:H$1)&"*'!A1:A99"),)),) -> 0 | J14: =IFERROR(INDEX(INDIRECT("'"&LOOKUP("яяя",$B$1:J$1)&"*'!Aw:Aw"),MATCH($A14,INDIRECT("'"&LOOKUP("яяя",$B$1:H$1)&"*'!A1:A99"),)),) -> 0 | K14: =IFERROR(INDEX(INDIRECT("'"&LOOKUP("яяя",$B$1:K$1)&"*'!Au:Au"),MATCH($A14,INDIRECT("'"&LOOKUP("яяя",$B$1:K$1)&"*'!A1:A99"),)),) -> 0 | L14: =IFERROR(INDEX(INDIRECT("'"&LOOKUP("яяя",$B$1:L$1)&"*'!Av:Av"),MATCH($A14,INDIRECT("'"&LOOKUP("яяя",$B$1:K$1)&"*'!A1:A99"),)),) -> 0 | M14: =IFERROR(INDEX(INDIRECT("'"&LOOKUP("яяя",$B$1:M$1)&"*'!Aw:Aw"),MATCH($A14,INDIRECT("'"&LOOKUP("яяя",$B$1:K$1)&"*'!A1:A99"),)),) -> 0 | O14: 0
B15: =IFERROR(INDEX(INDIRECT("'"&LOOKUP("яяя",$B$1:B$1)&"*'!Au:Au"),MATCH($A15,INDIRECT("'"&LOOKUP("яяя",$B$1:B$1)&"*'!A1:A99"),)),) -> 0 | C15: =IFERROR(INDEX(INDIRECT("'"&LOOKUP("яяя",$B$1:C$1)&"*'!Av:Av"),MATCH($A15,INDIRECT("'"&LOOKUP("яяя",$B$1:B$1)&"*'!A1:A99"),)),) -> 0 | D15: =IFERROR(INDEX(INDIRECT("'"&LOOKUP("яяя",$B$1:D$1)&"*'!Aw:Aw"),MATCH($A15,INDIRECT("'"&LOOKUP("яяя",$B$1:B$1)&"*'!A1:A99"),)),) -> 0 | E15: =IFERROR(INDEX(INDIRECT("'"&LOOKUP("яяя",$B$1:E$1)&"*'!Au:Au"),MATCH($A15,INDIRECT("'"&LOOKUP("яяя",$B$1:E$1)&"*'!A1:A99"),)),) -> 0 | F15: =IFERROR(INDEX(INDIRECT("'"&LOOKUP("яяя",$B$1:F$1)&"*'!Av:Av"),MATCH($A15,INDIRECT("'"&LOOKUP("яяя",$B$1:E$1)&"*'!A1:A99"),)),) -> 0 | G15: =IFERROR(INDEX(INDIRECT("'"&LOOKUP("яяя",$B$1:G$1)&"*'!Aw:Aw"),MATCH($A15,INDIRECT("'"&LOOKUP("яяя",$B$1:E$1)&"*'!A1:A99"),)),) -> 0 | H15: =IFERROR(INDEX(INDIRECT("'"&LOOKUP("яяя",$B$1:H$1)&"*'!Au:Au"),MATCH($A15,INDIRECT("'"&LOOKUP("яяя",$B$1:H$1)&"*'!A1:A99"),)),) -> 0 | I15: =IFERROR(INDEX(INDIRECT("'"&LOOKUP("яяя",$B$1:I$1)&"*'!Av:Av"),MATCH($A15,INDIRECT("'"&LOOKUP("яяя",$B$1:H$1)&"*'!A1:A99"),)),) -> 0 | J15: =IFERROR(INDEX(INDIRECT("'"&LOOKUP("яяя",$B$1:J$1)&"*'!Aw:Aw"),MATCH($A15,INDIRECT("'"&LOOKUP("яяя",$B$1:H$1)&"*'!A1:A99"),)),) -> 0 | K15: =IFERROR(INDEX(INDIRECT("'"&LOOKUP("яяя",$B$1:K$1)&"*'!Au:Au"),MATCH($A15,INDIRECT("'"&LOOKUP("яяя",$B$1:K$1)&"*'!A1:A99"),)),) -> 0 | L15: =IFERROR(INDEX(INDIRECT("'"&LOOKUP("яяя",$B$1:L$1)&"*'!Av:Av"),MATCH($A15,INDIRECT("'"&LOOKUP("яяя",$B$1:K$1)&"*'!A1:A99"),)),) -> 0 | M15: =IFERROR(INDEX(INDIRECT("'"&LOOKUP("яяя",$B$1:M$1)&"*'!Aw:Aw"),MATCH($A15,INDIRECT("'"&LOOKUP("яяя",$B$1:K$1)&"*'!A1:A99"),)),) -> 0 | O15: 0
B16: =IFERROR(INDEX(INDIRECT("'"&LOOKUP("яяя",$B$1:B$1)&"*'!Au:Au"),MATCH($A16,INDIRECT("'"&LOOKUP("яяя",$B$1:B$1)&"*'!A1:A99"),)),) -> 0 | C16: =IFERROR(INDEX(INDIRECT("'"&LOOKUP("яяя",$B$1:C$1)&"*'!Av:Av"),MATCH($A16,INDIRECT("'"&LOOKUP("яяя",$B$1:B$1)&"*'!A1:A99"),)),) -> 0 | D16: =IFERROR(INDEX(INDIRECT("'"&LOOKUP("яяя",$B$1:D$1)&"*'!Aw:Aw"),MATCH($A16,INDIRECT("'"&LOOKUP("яяя",$B$1:B$1)&"*'!A1:A99"),)),) -> 0 | E16: =IFERROR(INDEX(INDIRECT("'"&LOOKUP("яяя",$B$1:E$1)&"*'!Au:Au"),MATCH($A16,INDIRECT("'"&LOOKUP("яяя",$B$1:E$1)&"*'!A1:A99"),)),) -> 0 | F16: =IFERROR(INDEX(INDIRECT("'"&LOOKUP("яяя",$B$1:F$1)&"*'!Av:Av"),MATCH($A16,INDIRECT("'"&LOOKUP("яяя",$B$1:E$1)&"*'!A1:A99"),)),) -> 0 | G16: =IFERROR(INDEX(INDIRECT("'"&LOOKUP("яяя",$B$1:G$1)&"*'!Aw:Aw"),MATCH($A16,INDIRECT("'"&LOOKUP("яяя",$B$1:E$1)&"*'!A1:A99"),)),) -> 0 | H16: =IFERROR(INDEX(INDIRECT("'"&LOOKUP("яяя",$B$1:H$1)&"*'!Au:Au"),MATCH($A16,INDIRECT("'"&LOOKUP("яяя",$B$1:H$1)&"*'!A1:A99"),)),) -> 0 | I16: =IFERROR(INDEX(INDIRECT("'"&LOOKUP("яяя",$B$1:I$1)&"*'!Av:Av"),MATCH($A16,INDIRECT("'"&LOOKUP("яяя",$B$1:H$1)&"*'!A1:A99"),)),) -> 0 | J16: =IFERROR(INDEX(INDIRECT("'"&LOOKUP("яяя",$B$1:J$1)&"*'!Aw:Aw"),MATCH($A16,INDIRECT("'"&LOOKUP("яяя",$B$1:H$1)&"*'!A1:A99"),)),) -> 0 | K16: =IFERROR(INDEX(INDIRECT("'"&LOOKUP("яяя",$B$1:K$1)&"*'!Au:Au"),MATCH($A16,INDIRECT("'"&LOOKUP("яяя",$B$1:K$1)&"*'!A1:A99"),)),) -> 0 | L16: =IFERROR(INDEX(INDIRECT("'"&LOOKUP("яяя",$B$1:L$1)&"*'!Av:Av"),MATCH($A16,INDIRECT("'"&LOOKUP("яяя",$B$1:K$1)&"*'!A1:A99"),)),) -> 0 | M16: =IFERROR(INDEX(INDIRECT("'"&LOOKUP("яяя",$B$1:M$1)&"*'!Aw:Aw"),MATCH($A16,INDIRECT("'"&LOOKUP("яяя",$B$1:K$1)&"*'!A1:A99"),)),) -> 0 | O16: 0
B17: =IFERROR(INDEX(INDIRECT("'"&LOOKUP("яяя",$B$1:B$1)&"*'!Au:Au"),MATCH($A17,INDIRECT("'"&LOOKUP("яяя",$B$1:B$1)&"*'!A1:A99"),)),) -> 0 | C17: =IFERROR(INDEX(INDIRECT("'"&LOOKUP("яяя",$B$1:C$1)&"*'!Av:Av"),MATCH($A17,INDIRECT("'"&LOOKUP("яяя",$B$1:B$1)&"*'!A1:A99"),)),) -> 0 | D17: =IFERROR(INDEX(INDIRECT("'"&LOOKUP("яяя",$B$1:D$1)&"*'!Aw:Aw"),MATCH($A17,INDIRECT("'"&LOOKUP("яяя",$B$1:B$1)&"*'!A1:A99"),)),) -> 0 | E17: =IFERROR(INDEX(INDIRECT("'"&LOOKUP("яяя",$B$1:E$1)&"*'!Au:Au"),MATCH($A17,INDIRECT("'"&LOOKUP("яяя",$B$1:E$1)&"*'!A1:A99"),)),) -> 0 | F17: =IFERROR(INDEX(INDIRECT("'"&LOOKUP("яяя",$B$1:F$1)&"*'!Av:Av"),MATCH($A17,INDIRECT("'"&LOOKUP("яяя",$B$1:E$1)&"*'!A1:A99"),)),) -> 0 | G17: =IFERROR(INDEX(INDIRECT("'"&LOOKUP("яяя",$B$1:G$1)&"*'!Aw:Aw"),MATCH($A17,INDIRECT("'"&LOOKUP("яяя",$B$1:E$1)&"*'!A1:A99"),)),) -> 0 | H17: =IFERROR(INDEX(INDIRECT("'"&LOOKUP("яяя",$B$1:H$1)&"*'!Au:Au"),MATCH($A17,INDIRECT("'"&LOOKUP("яяя",$B$1:H$1)&"*'!A1:A99"),)),) -> 0 | I17: =IFERROR(INDEX(INDIRECT("'"&LOOKUP("яяя",$B$1:I$1)&"*'!Av:Av"),MATCH($A17,INDIRECT("'"&LOOKUP("яяя",$B$1:H$1)&"*'!A1:A99"),)),) -> 0 | J17: =IFERROR(INDEX(INDIRECT("'"&LOOKUP("яяя",$B$1:J$1)&"*'!Aw:Aw"),MATCH($A17,INDIRECT("'"&LOOKUP("яяя",$B$1:H$1)&"*'!A1:A99"),)),) -> 0 | K17: =IFERROR(INDEX(INDIRECT("'"&LOOKUP("яяя",$B$1:K$1)&"*'!Au:Au"),MATCH($A17,INDIRECT("'"&LOOKUP("яяя",$B$1:K$1)&"*'!A1:A99"),)),) -> 0 | L17: =IFERROR(INDEX(INDIRECT("'"&LOOKUP("яяя",$B$1:L$1)&"*'!Av:Av"),MATCH($A17,INDIRECT("'"&LOOKUP("яяя",$B$1:K$1)&"*'!A1:A99"),)),) -> 0 | M17: =IFERROR(INDEX(INDIRECT("'"&LOOKUP("яяя",$B$1:M$1)&"*'!Aw:Aw"),MATCH($A17,INDIRECT("'"&LOOKUP("яяя",$B$1:K$1)&"*'!A1:A99"),)),) -> 0 | O17: 0
B18: =IFERROR(INDEX(INDIRECT("'"&LOOKUP("яяя",$B$1:B$1)&"*'!Au:Au"),MATCH($A18,INDIRECT("'"&LOOKUP("яяя",$B$1:B$1)&"*'!A1:A99"),)),) -> 0 | C18: =IFERROR(INDEX(INDIRECT("'"&LOOKUP("яяя",$B$1:C$1)&"*'!Av:Av"),MATCH($A18,INDIRECT("'"&LOOKUP("яяя",$B$1:B$1)&"*'!A1:A99"),)),) -> 0 | D18: =IFERROR(INDEX(INDIRECT("'"&LOOKUP("яяя",$B$1:D$1)&"*'!Aw:Aw"),MATCH($A18,INDIRECT("'"&LOOKUP("яяя",$B$1:B$1)&"*'!A1:A99"),)),) -> 0 | E18: =IFERROR(INDEX(INDIRECT("'"&LOOKUP("яяя",$B$1:E$1)&"*'!Au:Au"),MATCH($A18,INDIRECT("'"&LOOKUP("яяя",$B$1:E$1)&"*'!A1:A99"),)),) -> 0 | F18: =IFERROR(INDEX(INDIRECT("'"&LOOKUP("яяя",$B$1:F$1)&"*'!Av:Av"),MATCH($A18,INDIRECT("'"&LOOKUP("яяя",$B$1:E$1)&"*'!A1:A99"),)),) -> 0 | G18: =IFERROR(INDEX(INDIRECT("'"&LOOKUP("яяя",$B$1:G$1)&"*'!Aw:Aw"),MATCH($A18,INDIRECT("'"&LOOKUP("яяя",$B$1:E$1)&"*'!A1:A99"),)),) -> 0 | H18: =IFERROR(INDEX(INDIRECT("'"&LOOKUP("яяя",$B$1:H$1)&"*'!Au:Au"),MATCH($A18,INDIRECT("'"&LOOKUP("яяя",$B$1:H$1)&"*'!A1:A99"),)),) -> 0 | I18: =IFERROR(INDEX(INDIRECT("'"&LOOKUP("яяя",$B$1:I$1)&"*'!Av:Av"),MATCH($A18,INDIRECT("'"&LOOKUP("яяя",$B$1:H$1)&"*'!A1:A99"),)),) -> 0 | J18: =IFERROR(INDEX(INDIRECT("'"&LOOKUP("яяя",$B$1:J$1)&"*'!Aw:Aw"),MATCH($A18,INDIRECT("'"&LOOKUP("яяя",$B$1:H$1)&"*'!A1:A99"),)),) -> 0 | K18: =IFERROR(INDEX(INDIRECT("'"&LOOKUP("яяя",$B$1:K$1)&"*'!Au:Au"),MATCH($A18,INDIRECT("'"&LOOKUP("яяя",$B$1:K$1)&"*'!A1:A99"),)),) -> 0 | L18: =IFERROR(INDEX(INDIRECT("'"&LOOKUP("яяя",$B$1:L$1)&"*'!Av:Av"),MATCH($A18,INDIRECT("'"&LOOKUP("яяя",$B$1:K$1)&"*'!A1:A99"),)),) -> 0 | M18: =IFERROR(INDEX(INDIRECT("'"&LOOKUP("яяя",$B$1:M$1)&"*'!Aw:Aw"),MATCH($A18,INDIRECT("'"&LOOKUP("яяя",$B$1:K$1)&"*'!A1:A99"),)),) -> 0 | O18: 0
B19: =IFERROR(INDEX(INDIRECT("'"&LOOKUP("яяя",$B$1:B$1)&"*'!Au:Au"),MATCH($A19,INDIRECT("'"&LOOKUP("яяя",$B$1:B$1)&"*'!A1:A99"),)),) -> 0 | C19: =IFERROR(INDEX(INDIRECT("'"&LOOKUP("яяя",$B$1:C$1)&"*'!Av:Av"),MATCH($A19,INDIRECT("'"&LOOKUP("яяя",$B$1:B$1)&"*'!A1:A99"),)),) -> 0 | D19: =IFERROR(INDEX(INDIRECT("'"&LOOKUP("яяя",$B$1:D$1)&"*'!Aw:Aw"),MATCH($A19,INDIRECT("'"&LOOKUP("яяя",$B$1:B$1)&"*'!A1:A99"),)),) -> 0 | E19: =IFERROR(INDEX(INDIRECT("'"&LOOKUP("яяя",$B$1:E$1)&"*'!Au:Au"),MATCH($A19,INDIRECT("'"&LOOKUP("яяя",$B$1:E$1)&"*'!A1:A99"),)),) -> 0 | F19: =IFERROR(INDEX(INDIRECT("'"&LOOKUP("яяя",$B$1:F$1)&"*'!Av:Av"),MATCH($A19,INDIRECT("'"&LOOKUP("яяя",$B$1:E$1)&"*'!A1:A99"),)),) -> 0 | G19: =IFERROR(INDEX(INDIRECT("'"&LOOKUP("яяя",$B$1:G$1)&"*'!Aw:Aw"),MATCH($A19,INDIRECT("'"&LOOKUP("яяя",$B$1:E$1)&"*'!A1:A99"),)),) -> 0 | H19: =IFERROR(INDEX(INDIRECT("'"&LOOKUP("яяя",$B$1:H$1)&"*'!Au:Au"),MATCH($A19,INDIRECT("'"&LOOKUP("яяя",$B$1:H$1)&"*'!A1:A99"),)),) -> 0 | I19: =IFERROR(INDEX(INDIRECT("'"&LOOKUP("яяя",$B$1:I$1)&"*'!Av:Av"),MATCH($A19,INDIRECT("'"&LOOKUP("яяя",$B$1:H$1)&"*'!A1:A99"),)),) -> 0 | J19: =IFERROR(INDEX(INDIRECT("'"&LOOKUP("яяя",$B$1:J$1)&"*'!Aw:Aw"),MATCH($A19,INDIRECT("'"&LOOKUP("яяя",$B$1:H$1)&"*'!A1:A99"),)),) -> 0 | K19: =IFERROR(INDEX(INDIRECT("'"&LOOKUP("яяя",$B$1:K$1)&"*'!Au:Au"),MATCH($A19,INDIRECT("'"&LOOKUP("яяя",$B$1:K$1)&"*'!A1:A99"),)),) -> 0 | L19: =IFERROR(INDEX(INDIRECT("'"&LOOKUP("яяя",$B$1:L$1)&"*'!Av:Av"),MATCH($A19,INDIRECT("'"&LOOKUP("яяя",$B$1:K$1)&"*'!A1:A99"),)),) -> 0 | M19: =IFERROR(INDEX(INDIRECT("'"&LOOKUP("яяя",$B$1:M$1)&"*'!Aw:Aw"),MATCH($A19,INDIRECT("'"&LOOKUP("яяя",$B$1:K$1)&"*'!A1:A99"),)),) -> 0 | O19: 0
B20: =IFERROR(INDEX(INDIRECT("'"&LOOKUP("яяя",$B$1:B$1)&"*'!Au:Au"),MATCH($A20,INDIRECT("'"&LOOKUP("яяя",$B$1:B$1)&"*'!A1:A99"),)),) -> 0 | C20: =IFERROR(INDEX(INDIRECT("'"&LOOKUP("яяя",$B$1:C$1)&"*'!Av:Av"),MATCH($A20,INDIRECT("'"&LOOKUP("яяя",$B$1:B$1)&"*'!A1:A99"),)),) -> 0 | D20: =IFERROR(INDEX(INDIRECT("'"&LOOKUP("яяя",$B$1:D$1)&"*'!Aw:Aw"),MATCH($A20,INDIRECT("'"&LOOKUP("яяя",$B$1:B$1)&"*'!A1:A99"),)),) -> 0 | E20: =IFERROR(INDEX(INDIRECT("'"&LOOKUP("яяя",$B$1:E$1)&"*'!Au:Au"),MATCH($A20,INDIRECT("'"&LOOKUP("яяя",$B$1:E$1)&"*'!A1:A99"),)),) -> 0 | F20: =IFERROR(INDEX(INDIRECT("'"&LOOKUP("яяя",$B$1:F$1)&"*'!Av:Av"),MATCH($A20,INDIRECT("'"&LOOKUP("яяя",$B$1:E$1)&"*'!A1:A99"),)),) -> 0 | G20: =IFERROR(INDEX(INDIRECT("'"&LOOKUP("яяя",$B$1:G$1)&"*'!Aw:Aw"),MATCH($A20,INDIRECT("'"&LOOKUP("яяя",$B$1:E$1)&"*'!A1:A99"),)),) -> 0 | H20: =IFERROR(INDEX(INDIRECT("'"&LOOKUP("яяя",$B$1:H$1)&"*'!Au:Au"),MATCH($A20,INDIRECT("'"&LOOKUP("яяя",$B$1:H$1)&"*'!A1:A99"),)),) -> 0 | I20: =IFERROR(INDEX(INDIRECT("'"&LOOKUP("яяя",$B$1:I$1)&"*'!Av:Av"),MATCH($A20,INDIRECT("'"&LOOKUP("яяя",$B$1:H$1)&"*'!A1:A99"),)),) -> 0 | J20: =IFERROR(INDEX(INDIRECT("'"&LOOKUP("яяя",$B$1:J$1)&"*'!Aw:Aw"),MATCH($A20,INDIRECT("'"&LOOKUP("яяя",$B$1:H$1)&"*'!A1:A99"),)),) -> 0 | K20: =IFERROR(INDEX(INDIRECT("'"&LOOKUP("яяя",$B$1:K$1)&"*'!Au:Au"),MATCH($A20,INDIRECT("'"&LOOKUP("яяя",$B$1:K$1)&"*'!A1:A99"),)),) -> 0 | L20: =IFERROR(INDEX(INDIRECT("'"&LOOKUP("яяя",$B$1:L$1)&"*'!Av:Av"),MATCH($A20,INDIRECT("'"&LOOKUP("яяя",$B$1:K$1)&"*'!A1:A99"),)),) -> 0 | M20: =IFERROR(INDEX(INDIRECT("'"&LOOKUP("яяя",$B$1:M$1)&"*'!Aw:Aw"),MATCH($A20,INDIRECT("'"&LOOKUP("яяя",$B$1:K$1)&"*'!A1:A99"),)),) -> 0 | O20: 0
